fUSD/lending_fUSD_20240412
["ID","MTS","AMOUNT","RATE_DAILY","PERIOD"]
[322258894,1712916661346,-151.55,0.00029,2]
[322258895,1712916661356,-151.55,0.00029,2]
[322258896,1712916661365,-151.55,0.00029,2]
[322258897,1712916661375,-151.55,0.00029,2]
[322258898,1712916661385,-151.55,0.00029,2]
[322258899,1712916661394,-151.55,0.00029,2]
[322258900,1712916661413,-151.55,0.00029,2]
[322258901,1712916661426,-151.55,0.00029,2]
[322258902,1712916661436,-151.55,0.00029,2]
[322258903,1712916661447,-151.55,0.00029,2]
[322258904,1712916661457,-151.55,0.00029,2]
[322258905,1712916661467,-151.55,0.00029,2]
[322258906,1712916661477,-151.55,0.00029,2]
[322258907,1712916661487,-151.55,0.00029,2]
[322258908,1712916661497,-151.55,0.00029,2]
[322258909,1712916661507,-151.55,0.00029,2]
[322258910,1712916661518,-151.55,0.00029,2]
[322258911,1712916661527,-151.55,0.00029,2]
[322258912,1712916661537,-151.55,0.00029,2]
[322258913,1712916661549,-151.55,0.00029,2]
[322258914,1712916661559,-151.55,0.00029,2]
[322258915,1712916661569,-151.55,0.00029,2]
[322258916,1712916661579,-151.55,0.00029,2]
[322258917,1712916661589,-151.55,0.00029,2]
[322258918,1712916661599,-151.55,0.00029,2]
[322258919,1712916661610,-151.55,0.00029,2]
[322258920,1712916661620,-151.55,0.00029,2]
[322258921,1712916661631,-151.55,0.00029,2]
[322258922,1712916661641,-151.55,0.00029,2]
[322258923,1712916661653,-151.55,0.00029,2]
[322258924,1712916661663,-151.55,0.00029,2]
[322258925,1712916661676,-151.55,0.00029,2]
[322258926,1712916661686,-151.55,0.00029,2]
[322258927,1712916661696,-151.55,0.00029,2]
[322258928,1712916661706,-157.96399926,0.00029006,2]
[322258929,1712916661717,-500.0,0.00029041,2]
[322258930,1712916661727,-500.0,0.00029041,2]
[322258931,1712916661736,-500.0,0.00029041,2]
[322258932,1712916661746,-500.0,0.00029041,2]
[322258933,1712916661758,-500.0,0.00029041,2]
[322258934,1712916661768,-500.0,0.00029041,2]
[322258935,1712916661777,-500.0,0.00029041,2]
[322258936,1712916661787,-500.0,0.00029041,2]
[322258937,1712916661796,-500.0,0.00029041,2]
[322258938,1712916661805,-500.0,0.00029041,2]
[322258939,1712916661815,-500.0,0.00029041,2]
[322258940,1712916661824,-500.0,0.00029041,2]
[322258941,1712916661834,-500.0,0.00029041,2]
[322258942,1712916661843,-150.0,0.00029041,2]
[322258943,1712916661853,-500.0,0.00029041,2]
[322258944,1712916661861,-500.0,0.00029041,2]
[322258945,1712916661871,-500.0,0.00029041,2]
[322258946,1712916661881,-500.0,0.00029041,2]
[322258947,1712916661890,-500.0,0.00029041,2]
[322258948,1712916661900,-500.0,0.00029041,2]
[322258949,1712916661909,-212.85390467,0.00029041,2]
[322258950,1712916661919,-500.0,0.00029041,2]
[322258951,1712916661928,-500.0,0.00029041,2]
[322258952,1712916661938,-500.0,0.00029041,2]
[322258953,1712916661947,-500.0,0.00029041,2]
[322258954,1712916661956,-500.0,0.00029041,2]
[322258955,1712916661966,-844.56,0.00029041,2]
[322258956,1712916661975,-500.0,0.00029041,2]
[322258957,1712916661985,-1528.81,0.00029041,2]
[322258958,1712916661994,-500.0,0.00029041,2]
[322258959,1712916662003,-688.0,0.00029041,2]
[322258960,1712916662013,-500.0,0.00029041,2]
[322258961,1712916662022,-500.0,0.00029041,2]
[322258962,1712916662032,-513.6,0.00029041,2]
[322258963,1712916662041,-500.0,0.00029041,2]
[322258964,1712916662051,-500.0,0.00029041,2]
[322258965,1712916662060,-1391.19,0.00029041,2]
[322258966,1712916662069,-500.0,0.00029041,2]
[322258967,1712916662078,-1076.28,0.00029041,2]
[322258968,1712916662088,-500.0,0.00029041,2]
[322258969,1712916662097,-500.0,0.00029041,2]
[322258970,1712916662106,-500.0,0.00029041,2]
[322258971,1712916662115,-500.0,0.00029041,2]
[322258972,1712916662125,-500.0,0.00029041,2]
[322258973,1712916662134,-550.78,0.00029041,2]
[322258974,1712916662143,-500.0,0.00029041,2]
[322258975,1712916662153,-613.24,0.00029041,2]
[322258976,1712916662162,-578.33,0.00029041,2]
[322258977,1712916662172,-4360.31,0.00029041,2]
[322258978,1712916662181,-500.0,0.00029041,2]
[322258979,1712916662190,-500.0,0.00029041,2]
[322258980,1712916662198,-500.0,0.00029041,2]
[322258981,1712916662207,-500.0,0.00029041,2]
[322258982,1712916662217,-589.66,0.00029041,2]
[322258983,1712916662227,-500.0,0.00029041,2]
[322258984,1712916662236,-500.0,0.00029041,2]
[322258985,1712916662246,-500.0,0.00029041,2]
[322258986,1712916662255,-500.0,0.00029041,2]
[322258987,1712916662266,-2207.75,0.00029041,2]
[322258988,1712916662276,-500.0,0.00029041,2]
[322258989,1712916662286,-730.85,0.00029041,2]
[322258990,1712916662295,-500.0,0.00029041,2]
[322258991,1712916662305,-500.0,0.00029041,2]
[322258992,1712916662315,-500.0,0.00029041,2]
[322258993,1712916662324,-500.0,0.00029041,2]
[322258994,1712916662333,-834.74,0.00029041,2]
[322258995,1712916662342,-500.0,0.00029041,2]
[322258996,1712916662351,-500.0,0.00029041,2]
[322258997,1712916662361,-500.0,0.00029041,2]
[322258998,1712916662370,-500.0,0.00029041,2]
[322258999,1712916662379,-503.47,0.00029041,2]
[322259000,1712916662388,-652.05,0.00029041,2]
[322259001,1712916662398,-1520.01,0.00029041,2]
[322259002,1712916662407,-504.37,0.00029041,2]
[322259003,1712916662416,-500.0,0.00029041,2]
[322259004,1712916662426,-500.0,0.00029041,2]
[322259005,1712916662435,-500.0,0.00029041,2]
[322259006,1712916662445,-500.0,0.00029041,2]
[322259007,1712916662453,-687.97,0.00029041,2]
[322259008,1712916662463,-942.27,0.00029041,2]
[322259009,1712916662472,-500.0,0.00029041,2]
[322259010,1712916662482,-500.0,0.00029041,2]
[322259011,1712916662494,-1124.32,0.00029041,2]
[322259012,1712916662504,-500.0,0.00029041,2]
[322259013,1712916662513,-500.0,0.00029041,2]
[322259014,1712916662522,-500.0,0.00029041,2]
[322259015,1712916662532,-724.59,0.00029041,2]
[322259016,1712916662541,-1077.64,0.00029041,2]
[322259017,1712916662551,-1340.25,0.00029041,2]
[322259018,1712916662560,-500.0,0.00029041,2]
[322259019,1712916662570,-1717.34,0.00029041,2]
[322259020,1712916662579,-500.0,0.00029041,2]
[322259021,1712916662589,-1068.06,0.00029041,2]
[322259022,1712916662600,-500.0,0.00029041,2]
[322259023,1712916662610,-641.93,0.00029041,2]
[322259024,1712916662621,-821.08,0.00029041,2]
[322259025,1712916662631,-604.09,0.00029041,2]
[322259026,1712916662641,-5530.8,0.00029041,2]
[322259027,1712916662651,-500.0,0.00029041,2]
[322259028,1712916662661,-1904.72,0.00029041,2]
[322259029,1712916662670,-500.0,0.00029041,2]
[322259030,1712916662684,-800.47,0.00029041,2]
[322259031,1712916662694,-2261.68,0.00029041,2]
[322259032,1712916662705,-500.0,0.00029041,2]
[322259033,1712916662716,-604.39,0.00029041,2]
[322259034,1712916662726,-2052.73,0.00029041,2]
[322259035,1712916662736,-500.0,0.00029041,2]
[322259036,1712916662747,-500.0,0.00029041,2]
[322259037,1712916662758,-1035.94,0.00029041,2]
[322259038,1712916662772,-500.0,0.00029041,2]
[322259039,1712916662782,-1186.85,0.00029041,2]
[322259040,1712916662792,-500.0,0.00029041,2]
[322259041,1712916662804,-930.87,0.00029041,2]
[322259042,1712916662815,-763.34,0.00029041,2]
[322259043,1712916662825,-1062.21,0.00029041,2]
[322259044,1712916662835,-324.65685686,0.00029041,2]
[322259045,1712916662845,-500.0,0.00029041,2]
[322259046,1712916662854,-500.0,0.00029041,2]
[322259047,1712916662864,-500.0,0.00029041,2]
[322259048,1712916662873,-500.0,0.00029041,2]
[322259049,1712916662883,-925.96,0.00029041,2]
[322259050,1712916662892,-684.38,0.00029041,2]
[322259051,1712916662903,-888.39,0.00029041,2]
[322259052,1712916662913,-510.32,0.00029041,2]
[322259053,1712916662924,-1070.46,0.00029041,2]
[322259054,1712916662933,-500.0,0.00029041,2]
[322259055,1712916662942,-500.0,0.00029041,2]
[322259056,1712916663102,-330.40631515,0.00029041,2]
[322259057,1712916663114,-500.0,0.00029041,2]
[322259058,1712916663125,-683.24,0.00029041,2]
[322259059,1712916663137,-9883.5,0.00029041,2]
[322259060,1712916663148,-500.0,0.00029041,2]
[322259061,1712916663159,-500.0,0.00029041,2]
[322259062,1712916663169,-500.0,0.00029041,2]
[322259063,1712916663179,-500.0,0.00029041,2]
[322259064,1712916663189,-500.0,0.00029041,2]
[322259065,1712916663201,-500.0,0.00029041,2]
[322259066,1712916663212,-500.0,0.00029041,2]
[322259067,1712916663224,-500.0,0.00029041,2]
[322259068,1712916663234,-500.0,0.00029041,2]
[322259069,1712916663244,-500.0,0.00029041,2]
[322259070,1712916663254,-3764.32,0.00029041,2]
[322259071,1712916663265,-1203.6,0.00029041,2]
[322259072,1712916663274,-1505.66,0.00029041,2]
[322259073,1712916663284,-500.0,0.00029041,2]
[322259074,1712916663294,-500.0,0.00029041,2]
[322259075,1712916663302,-500.0,0.00029041,2]
[322259076,1712916663311,-500.0,0.00029041,2]
[322259077,1712916663320,-500.0,0.00029041,2]
[322259078,1712916663329,-500.0,0.00029041,2]
[322259079,1712916663338,-159.14360615,0.00029082,2]
[322259080,1712916663347,-155.07714216,0.00029122,2]
[322259081,1712916663356,-506.52,0.00029272,2]
[322259082,1712916663365,-500.0,0.00029272,2]
[322259083,1712916663374,-500.0,0.00029272,2]
[322259084,1712916663383,-500.0,0.00029272,2]
[322259085,1712916663392,-500.0,0.00029272,2]
[322259086,1712916663401,-500.0,0.00029272,2]
[322259087,1712916663409,-500.0,0.00029272,2]
[322259088,1712916663418,-500.0,0.00029272,2]
[322259089,1712916663427,-500.0,0.00029272,2]
[322259090,1712916663437,-527.69,0.00029272,2]
[322259091,1712916663447,-500.0,0.00029272,2]
[322259092,1712916663457,-500.0,0.00029272,2]
[322259093,1712916663467,-500.0,0.00029272,2]
[322259094,1712916663477,-500.0,0.00029272,2]
[322259095,1712916663486,-666.66,0.00029272,2]
[322259096,1712916663495,-500.0,0.00029272,2]
[322259097,1712916663507,-500.0,0.00029272,2]
[322259098,1712916663518,-500.0,0.00029272,2]
[322259099,1712916663527,-616.70564378,0.00029272,2]
[322259100,1712916663537,-500.0,0.00029272,2]
[322259101,1712916663546,-752.76,0.00029272,2]
[322259102,1712916663556,-500.0,0.00029272,2]
[322259103,1712916663566,-500.0,0.00029272,2]
[322259104,1712916663576,-586.11,0.00029272,2]
[322259105,1712916663585,-537.49,0.00029272,2]
[322259106,1712916663595,-500.0,0.00029272,2]
[322259107,1712916663604,-764.86,0.00029272,2]
[322259108,1712916663613,-500.0,0.00029272,2]
[322259109,1712916663623,-500.0,0.00029272,2]
[322259110,1712916663633,-550.76,0.00029272,2]
[322259111,1712916663643,-500.0,0.00029272,2]
[322259112,1712916663653,-500.0,0.00029272,2]
[322259113,1712916663662,-813.78,0.00029272,2]
[322259114,1712916663674,-720.83,0.00029272,2]
[322259115,1712916663684,-500.0,0.00029272,2]
[322259116,1712916663694,-500.0,0.00029272,2]
[322259117,1712916663704,-500.0,0.00029273,2]
[322259118,1712916663714,-500.0,0.00029273,2]
[322259119,1712916663723,-500.0,0.00029273,2]
[322259120,1712916663733,-638.66,0.00029273,2]
[322259121,1712916663742,-500.0,0.00029273,2]
[322259122,1712916663753,-500.0,0.00029273,2]
[322259123,1712916663763,-507.95893286,0.00029273,2]
[322259124,1712916663772,-504.82540812,0.00029273,2]
[322259125,1712916663781,-500.0,0.00029273,2]
[322259126,1712916663792,-500.0,0.00029273,2]
[322259127,1712916663801,-500.0,0.00029273,2]
[322259128,1712916663811,-507.24961377,0.00029273,2]
[322259129,1712916663822,-567.95389229,0.00029273,2]
[322259130,1712916663832,-500.0,0.00029273,2]
[322259131,1712916663843,-500.0,0.00029273,2]
[322259132,1712916663855,-500.0,0.00029273,2]
[322259133,1712916663864,-500.0,0.00029273,2]
[322259134,1712916663876,-500.0,0.00029273,2]
[322259135,1712916663886,-259.85940966,0.00029273,2]
[322259136,1712916663899,-500.0,0.00029273,2]
[322259137,1712916663909,-500.0,0.00029273,2]
[322259138,1712916663918,-500.0,0.00029273,2]
[322259139,1712916663928,-500.0,0.00029273,2]
[322259140,1712916663938,-500.0,0.00029273,2]
[322259141,1712916663948,-500.0,0.00029273,2]
[322259142,1712916663957,-500.0,0.00029273,2]
[322259143,1712916663967,-500.0,0.00029273,2]
[322259144,1712916663976,-506.05685866,0.00029273,2]
[322259145,1712916663985,-506.9053882,0.00029273,2]
[322259146,1712916663994,-500.0,0.00029273,2]
[322259147,1712916664003,-500.0,0.00029273,2]
[322259148,1712916664014,-500.0,0.00029273,2]
[322259149,1712916664023,-500.0,0.00029273,2]
[322259150,1712916664031,-509.50450026,0.00029273,2]
[322259151,1712916664041,-500.0,0.00029273,2]
[322259152,1712916664049,-500.0,0.00029273,2]
[322259153,1712916664059,-506.66494919,0.00029273,2]
[322259154,1712916664069,-544.32,0.00029273,2]
[322259155,1712916664078,-577.83,0.00029273,2]
[322259156,1712916664088,-500.0,0.00029273,2]
[322259157,1712916664097,-500.0,0.00029273,2]
[322259158,1712916664106,-513.71931441,0.00029273,2]
[322259159,1712916664115,-500.0,0.00029273,2]
[322259160,1712916664124,-638.14,0.00029273,2]
[322259161,1712916664133,-708.33,0.00029273,2]
[322259162,1712916664142,-500.0,0.00029273,2]
[322259163,1712916664151,-500.0,0.00029273,2]
[322259164,1712916664161,-500.0,0.00029273,2]
[322259165,1712916664169,-500.0,0.00029273,2]
[322259166,1712916664179,-567.16762757,0.00029273,2]
[322259167,1712916664188,-500.0,0.00029273,2]
[322259168,1712916664197,-509.37436161,0.00029273,2]
[322259169,1712916664206,-500.0,0.00029273,2]
[322259170,1712916664216,-597.04,0.00029273,2]
[322259171,1712916664225,-500.0,0.00029273,2]
[322259172,1712916664234,-500.0,0.00029273,2]
[322259173,1712916664243,-500.0,0.00029273,2]
[322259174,1712916664252,-500.0,0.00029273,2]
[322259175,1712916664262,-500.0,0.00029273,2]
[322259176,1712916664272,-507.78,0.00029273,2]
[322259177,1712916664281,-500.0,0.00029273,2]
[322259178,1712916664290,-500.0,0.00029273,2]
[322259179,1712916664299,-500.0,0.00029273,2]
[322259180,1712916664308,-500.0,0.00029273,2]
[322259181,1712916664318,-767.25,0.00029276,2]
[322259182,1712916664327,-500.0,0.00029315,2]
[322259183,1712916664336,-500.0,0.00029315,2]
[322259184,1712916664345,-500.0,0.00029315,2]
[322259185,1712916664355,-500.0,0.00029315,2]
[322259186,1712916664364,-263.26199225,0.00029315,2]
[322259187,1712916664373,-500.0,0.00029315,2]
[322259188,1712916664383,-500.0,0.00029315,2]
[322259189,1712916664392,-500.0,0.00029315,2]
[322259190,1712916664402,-500.0,0.00029315,2]
[322259191,1712916664411,-500.0,0.00029315,2]
[322259192,1712916664420,-500.0,0.00029315,2]
[322259193,1712916664430,-500.0,0.00029315,2]
[322259194,1712916664439,-500.0,0.00029315,2]
[322259195,1712916664448,-150.0,0.00029315,2]
[322259196,1712916664458,-500.0,0.00029315,2]
[322259197,1712916664467,-500.0,0.00029315,2]
[322259198,1712916664476,-500.0,0.00029315,2]
[322259199,1712916664485,-500.0,0.00029315,2]
[322259200,1712916664494,-500.0,0.00029315,2]
[322259201,1712916664504,-500.0,0.00029315,2]
[322259202,1712916664514,-500.0,0.00029315,2]
[322259203,1712916664523,-500.0,0.00029315,2]
[322259204,1712916664533,-500.0,0.00029315,2]
[322259205,1712916664542,-500.0,0.00029315,2]
[322259206,1712916664551,-500.0,0.00029315,2]
[322259207,1712916664561,-844.56,0.00029315,2]
[322259208,1712916664570,-500.0,0.00029315,2]
[322259209,1712916664583,-1528.81,0.00029315,2]
[322259210,1712916664593,-470.6722442,0.00029315,2]
[322259211,1712916664604,-356.43800266,0.00029315,2]
[322259212,1712916664614,-389.24331237,0.00029315,2]
[322259213,1712916664623,-513.6,0.00029315,2]
[322259214,1712916664632,-500.0,0.00029315,2]
[322259215,1712916664642,-500.0,0.00029315,2]
[322259216,1712916664651,-1391.19,0.00029315,2]
[322259217,1712916664661,-500.0,0.00029315,2]
[322259218,1712916664672,-1076.28,0.00029315,2]
[322259219,1712916664685,-500.0,0.00029315,2]
[322259220,1712916664695,-500.0,0.00029315,2]
[322259221,1712916664706,-500.0,0.00029315,2]
[322259222,1712916664717,-500.0,0.00029315,2]
[322259223,1712916664727,-500.0,0.00029315,2]
[322259224,1712916664738,-550.78,0.00029315,2]
[322259225,1712916664749,-500.0,0.00029315,2]
[322259226,1712916664760,-613.24,0.00029315,2]
[322259227,1712916664771,-578.33,0.00029315,2]
[322259228,1712916664780,-4360.31,0.00029315,2]
[322259229,1712916664789,-500.0,0.00029315,2]
[322259230,1712916664798,-500.0,0.00029315,2]
[322259231,1712916664808,-500.0,0.00029315,2]
[322259232,1712916664819,-500.0,0.00029315,2]
[322259233,1712916664829,-589.66,0.00029315,2]
[322259234,1712916664838,-500.0,0.00029315,2]
[322259235,1712916664849,-500.0,0.00029315,2]
[322259236,1712916664859,-500.0,0.00029315,2]
[322259237,1712916664868,-500.0,0.00029315,2]
[322259238,1712916664878,-2207.75,0.00029315,2]
[322259239,1712916664887,-500.0,0.00029315,2]
[322259240,1712916664896,-730.85,0.00029315,2]
[322259241,1712916664906,-500.0,0.00029315,2]
[322259242,1712916664915,-500.0,0.00029315,2]
[322259243,1712916664924,-500.0,0.00029315,2]
[322259244,1712916664938,-500.0,0.00029315,2]
[322259245,1712916664947,-834.74,0.00029315,2]
[322259246,1712916664957,-500.0,0.00029315,2]
[322259247,1712916664967,-500.0,0.00029315,2]
[322259248,1712916665098,-500.0,0.00029315,2]
[322259249,1712916665109,-500.0,0.00029315,2]
[322259250,1712916665119,-503.47,0.00029315,2]
[322259251,1712916665129,-652.05,0.00029315,2]
[322259252,1712916665139,-1520.01,0.00029315,2]
[322259253,1712916665148,-504.37,0.00029315,2]
[322259254,1712916665158,-500.0,0.00029315,2]
[322259255,1712916665168,-500.0,0.00029315,2]
[322259256,1712916665177,-500.0,0.00029315,2]
[322259257,1712916665187,-500.0,0.00029315,2]
[322259258,1712916665196,-687.97,0.00029315,2]
[322259259,1712916665205,-942.27,0.00029315,2]
[322259260,1712916665215,-500.0,0.00029315,2]
[322259261,1712916665224,-1124.32,0.00029315,2]
[322259262,1712916665234,-500.0,0.00029315,2]
[322259263,1712916665243,-500.0,0.00029315,2]
[322259264,1712916665253,-500.0,0.00029315,2]
[322259265,1712916665262,-500.0,0.00029315,2]
[322259266,1712916665273,-724.59,0.00029315,2]
[322259267,1712916665283,-1077.64,0.00029315,2]
[322259268,1712916665293,-1340.25,0.00029315,2]
[322259269,1712916665302,-500.0,0.00029315,2]
[322259270,1712916665311,-1717.34,0.00029315,2]
[322259271,1712916665320,-500.0,0.00029315,2]
[322259272,1712916665330,-1068.06,0.00029315,2]
[322259273,1712916665339,-500.0,0.00029315,2]
[322259274,1712916665349,-641.93,0.00029315,2]
[322259275,1712916665358,-821.08,0.00029315,2]
[322259276,1712916665368,-604.09,0.00029315,2]
[322259277,1712916665378,-5530.8,0.00029315,2]
[322259278,1712916665388,-500.0,0.00029315,2]
[322259279,1712916665397,-1904.72,0.00029315,2]
[322259280,1712916665407,-500.0,0.00029315,2]
[322259281,1712916665416,-800.47,0.00029315,2]
[322259282,1712916665426,-2261.68,0.00029315,2]
[322259283,1712916665435,-500.0,0.00029315,2]
[322259284,1712916665445,-604.39,0.00029315,2]
[322259285,1712916665455,-2052.73,0.00029315,2]
[322259286,1712916665465,-500.0,0.00029315,2]
[322259287,1712916665475,-500.0,0.00029315,2]
[322259288,1712916665484,-1035.94,0.00029315,2]
[322259289,1712916665494,-500.0,0.00029315,2]
[322259290,1712916665505,-1186.85,0.00029315,2]
[322259291,1712916665515,-500.0,0.00029315,2]
[322259292,1712916665524,-930.87,0.00029315,2]
[322259293,1712916665533,-763.34,0.00029315,2]
[322259294,1712916665543,-1062.21,0.00029315,2]
[322259295,1712916665553,-500.0,0.00029315,2]
[322259296,1712916665563,-500.0,0.00029315,2]
[322259297,1712916665572,-500.0,0.00029315,2]
[322259298,1712916665582,-500.0,0.00029315,2]
[322259299,1712916665592,-925.96,0.00029315,2]
[322259300,1712916665602,-684.38,0.00029315,2]
[322259301,1712916665612,-888.39,0.00029315,2]
[322259302,1712916665622,-510.32,0.00029315,2]
[322259303,1712916665632,-1070.46,0.00029315,2]
[322259304,1712916665647,-500.0,0.00029315,2]
[322259305,1712916665659,-500.0,0.00029315,2]
[322259306,1712916665669,-500.0,0.00029315,2]
[322259307,1712916665683,-683.24,0.00029315,2]
[322259308,1712916665693,-9883.5,0.00029315,2]
[322259309,1712916665703,-500.0,0.00029315,2]
[322259310,1712916665714,-500.0,0.00029315,2]
[322259311,1712916665724,-500.0,0.00029315,2]
[322259312,1712916665734,-641.27781528,0.00029315,2]
[322259313,1712916665744,-500.0,0.00029315,2]
[322259314,1712916665755,-500.0,0.00029315,2]
[322259315,1712916665767,-500.0,0.00029315,2]
[322259316,1712916665777,-500.0,0.00029315,2]
[322259317,1712916665787,-500.0,0.00029315,2]
[322259318,1712916665796,-3764.32,0.00029315,2]
[322259319,1712916665806,-1203.6,0.00029315,2]
[322259320,1712916665816,-1505.66,0.00029315,2]
[322259321,1712916665826,-500.0,0.00029315,2]
[322259322,1712916665835,-500.0,0.00029315,2]
[322259323,1712916665844,-500.0,0.00029315,2]
[322259324,1712916665853,-500.0,0.00029315,2]
[322259325,1712916665863,-500.0,0.00029315,2]
[322259326,1712916665872,-500.0,0.00029364,2]
[322259327,1712916665882,-500.0,0.00029364,2]
[322259328,1712916665891,-150.0,0.000294,2]
[322259329,1712916665900,-154.30704407,0.00029421,2]
[322259330,1712916665910,-153.95330426,0.00029448,2]
[322259331,1712916665920,-155.07714216,0.00029542,2]
[322259332,1712916665930,-506.52,0.00029546,2]
[322259333,1712916665939,-500.0,0.00029546,2]
[322259334,1712916665949,-500.0,0.00029546,2]
[322259335,1712916665958,-500.0,0.00029546,2]
[322259336,1712916665968,-500.0,0.00029546,2]
[322259337,1712916665977,-287.70114185,0.00029546,2]
[322259338,1712916665987,-535.52460128,0.00029546,2]
[322259339,1712916665996,-500.0,0.00029546,2]
[322259340,1712916666005,-500.0,0.00029546,2]
[322259341,1712916666016,-527.69,0.00029546,2]
[322259342,1712916666025,-500.0,0.00029546,2]
[322259343,1712916666035,-500.0,0.00029546,2]
[322259344,1712916666045,-577.46812739,0.00029546,2]
[322259345,1712916666054,-343.26471473,0.00029546,2]
[322259346,1712916666063,-666.66,0.00029546,2]
[322259347,1712916666073,-500.0,0.00029546,2]
[322259348,1712916666082,-500.0,0.00029546,2]
[322259349,1712916666091,-500.0,0.00029546,2]
[322259350,1712916666101,-500.0,0.00029546,2]
[322259351,1712916666111,-752.76,0.00029546,2]
[322259352,1712916666122,-500.0,0.00029546,2]
[322259353,1712916666131,-500.0,0.00029546,2]
[322259354,1712916666142,-586.11,0.00029546,2]
[322259355,1712916666152,-537.49,0.00029546,2]
[322259356,1712916666162,-500.0,0.00029546,2]
[322259357,1712916666172,-764.86,0.00029546,2]
[322259358,1712916666181,-500.0,0.00029546,2]
[322259359,1712916666191,-500.0,0.00029546,2]
[322259360,1712916666201,-550.76,0.00029546,2]
[322259361,1712916666211,-500.0,0.00029546,2]
[322259362,1712916666221,-500.0,0.00029546,2]
[322259363,1712916666234,-813.78,0.00029546,2]
[322259364,1712916666250,-720.83,0.00029546,2]
[322259365,1712916666261,-500.0,0.00029546,2]
[322259366,1712916666271,-500.0,0.00029546,2]
[322259367,1712916666280,-500.0,0.00029547,2]
[322259368,1712916666289,-500.0,0.00029547,2]
[322259369,1712916666299,-638.66,0.00029547,2]
[322259370,1712916666309,-452.57719797,0.00029547,2]
[322259371,1712916666318,-500.0,0.00029547,2]
[322259372,1712916666327,-500.0,0.00029547,2]
[322259373,1712916666336,-500.0,0.00029547,2]
[322259374,1712916666346,-500.0,0.00029547,2]
[322259375,1712916666355,-500.0,0.00029547,2]
[322259376,1712916666365,-500.0,0.00029547,2]
[322259377,1712916666374,-500.0,0.00029547,2]
[322259378,1712916666383,-500.0,0.00029547,2]
[322259379,1712916666393,-500.0,0.00029547,2]
[322259380,1712916666403,-500.0,0.00029547,2]
[322259381,1712916666412,-600.90969125,0.00029547,2]
[322259382,1712916666421,-500.0,0.00029547,2]
[322259383,1712916666431,-500.0,0.00029547,2]
[322259384,1712916666440,-577.83,0.00029547,2]
[322259385,1712916666450,-544.32,0.00029547,2]
[322259386,1712916666459,-500.0,0.00029547,2]
[322259387,1712916666469,-500.0,0.00029547,2]
[322259388,1712916666478,-500.0,0.00029547,2]
[322259389,1712916666488,-638.14,0.00029547,2]
[322259390,1712916666498,-708.33,0.00029547,2]
[322259391,1712916666508,-500.0,0.00029547,2]
[322259392,1712916666519,-500.0,0.00029547,2]
[322259393,1712916666528,-500.0,0.00029547,2]